[Event "9. Korbacher Open 2017"]
[Site "Korbach"]
[Date "2017.10.20"]
[Round "3"]
[White "Nielsen, Klaus"]
[Black "Launert, Martin"]
[Result "1-0"]
[ECO "C51"]
[WhiteElo "2092"]
[BlackElo "1879"]
[Annotator "NA RC"]
[PlyCount "79"]
[EventDate "2017.??.??"]
[EventType "swiss"]
[EventCountry "GER"]
[SourceTitle "playchess.com"]
[Source "ChessBase"]
[SourceQuality "1"]
[TimeControl "40/5400+30:1800+30"]

{[%evp 8,74,17,-46,32767,32767,0,0,-5,20,13,-28,6,7,6,20,30,13,0,-21,-8,-39,16,0,22,0,-9,0,1,-25,-40,-64,32767,32767,-56,-132,32767,-60,-50,-39,12,18,177,-18,0,-27,-22,-65,-56,-106,-123,-197,-216,-230,-212,-251,-257,-261,-264,-272,-201,-198,-191,-279,0,0,245,224,289]} 1. e4 {[%emt 0:00:00]} e5 {[%emt 0:00:04]} 2. Nf3 {[%emt 0:00:00]} Nc6 {[%emt 0:00:06]} 3. Bc4 {[%emt 0:00:02]} Bc5 {[%emt 0:00:13]} 4. b4 {[%emt 0:01:55]} Bxb4 {[%emt 0:01:09]} 5. c3 {[%emt 0:00:09]} Be7 {[%emt 0:03:22]} 6. d4 {[%emt 0:00:07]} Na5 {[%emt 0:19:48]} 7. Bd3 {[%emt 0:00:55]} exd4 {[%emt 0:02:09] C51: Evans Gambit: Declined and Accepted without 5...Ba5} (7... d6 8. dxe5 dxe5 9. Nxe5 Nf6 10. O-O O-O 11. Qc2 c5 12. Nd2 Qc7 13. Nec4 Nxc4 14. Bxc4 Bd6 15. h3 {0-1 (47) Kryvoruchko,Y (2707)-Karjakin,S (2771) Dubai 2014}) 8. cxd4 {[%emt 0:00:37]} d5 {[%emt 0:01:08]} 9. e5 {[%emt 0:08:23]} (9. exd5 $5 {[%cal Rd1a4]} c6 10. dxc6 $11) 9... Nc6 {[%emt 0:06:10]} 10. O-O {[%emt 0:00:09]} Bg4 $146 {[%emt 0:00:54]} ({Predecessor:} 10... Nh6 11. Bxh6 gxh6 12. h3 Rg8 13. Kh2 Be6 14. Nc3 Qd7 15. Rb1 Rb8 16. Bxh7 Rg7 17. Bc2 Kf8 18. Ne2 f6 {½-½ (18) Cabot Muntane,J (1938)-Minguez Rodriguez,R (2223) Barcelona 2014}) 11. Be3 {[%emt 0:00:11]} Qd7 {[%emt 0:04:02]} 12. Nbd2 {[%emt 0:04:04]} Bb4 {[%emt 0:06:13]} 13. Qb3 {[%emt 0:01:23]} Nge7 {[%emt 0:03:25]} 14. a3 {[%emt 0:04:19]} Bxd2 {[%emt 0:01:20]} 15. Nxd2 {[%emt 0:00:56]} Rb8 {[%emt 0:01:28]} 16. f3 {[%emt 0:05:02]} Bf5 {[%emt 0:00:35]} 17. Be2 {[%emt 0:00:59]} O-O {[%emt 0:01:08]} 18. g4 {[%emt 0:02:58]} Be6 {[%emt 0:02:52]} 19. Qc3 {[%emt 0:02:21]} f5 {[%emt 0:04:58]} 20. exf6 {[%emt 0:00:17]} Rxf6 {[%emt 0:00:22]} 21. Bg5 {[%emt 0:01:31]} (21. Nb3 $15) 21... Rff8 {[%emt 0:01:47]} 22. Nb3 {[%emt 0:03:18]} Ng6 {[%emt 0:06:23]} 23. Rae1 {[%emt 0:01:52]} Qf7 {[%emt 0:08:56]} (23... Qd6 $15) 24. Nc5 {[%emt 0:05:54]} Bd7 $2 {[%emt 0:00:35] [#]} (24... Rbe8 $11 {und Schwarz muss sich keine Sorgen machen.}) 25. Bd3 $2 {[%emt 0:06:13]} (25. f4 $1 $18) 25... Rfe8 {[%emt 0:02:19]} 26. Nxd7 {[%emt 0:04:30]} Qxd7 {[%emt 0:02:54]} 27. Bf5 {[%emt 0:02:36]} Qd6 {[%emt 0:01:12]} 28. Qd3 {[%emt 0:02:07]} Nf8 {[%emt 0:02:49]} 29. Bh4 {[%emt 0:00:33]} (29. Qd2 $17 {war angesagt.}) 29... g6 {[%emt 0:00:34]} 30. Bg3 {[%emt 0:01:43]} Qd8 {[%emt 0:01:46]} 31. Rxe8 {[%emt 0:01:11]} Qxe8 {[%emt 0:00:03]} 32. Bxc7 {[%emt 0:01:31]} Ra8 {[%emt 0:02:43]} ({Weaker is} 32... gxf5 33. Bxb8 Qxb8 34. Rb1 $17) 33. Kh1 {[%emt 0:03:29]} gxf5 {[%emt 0:01:37]} 34. gxf5 {[%emt 0:01:00]} Nd7 {[%emt 0:02:11]} 35. Qb3 {[%emt 0:07:52]} Nf6 $2 {[%emt 0:02:32]} (35... Qe2 $19 {[%cal Re2f1]} 36. Rg1+ Kh8 37. Qxd5 Re8) 36. Qxb7 {[%emt 0:00:50]} Rc8 $2 {[%emt 0:03:38]} (36... Kf7 $11) 37. Rg1+ {[%emt 0:00:23]} Kf7 $18 {[%emt 0:00:39]} 38. Be5+ {[%emt 0:02:19]} Qd7 {[%emt 0:00:20]} 39. Rg7+ {[%emt 0:00:32]} Kxg7 {[%emt 0:01:39]} 40. Qxd7+ {[%emt 0:00:08]} 1-0

[Event "9. Korbacher Open 2017"]
[Site "Korbach"]
[Date "2017.10.20"]
[Round "3"]
[White "Schmidt, Matthias"]
[Black "Held, Martin"]
[Result "1-0"]
[ECO "C27"]
[WhiteElo "2031"]
[BlackElo "1821"]
[Annotator "NA RC"]
[PlyCount "43"]
[EventDate "2017.??.??"]
[EventType "swiss"]
[EventCountry "GER"]
[SourceTitle "playchess.com"]
[Source "ChessBase"]
[SourceQuality "1"]
[TimeControl "40/5400+30:1800+30"]

{[%evp 10,43,79,68,68,81,128,130,145,356,157,139,140,151,172,114,183,106,115,105,197,172,154,25,111,120,113,157,167,98,240,260,978,988,1216,1258]} 1. e4 {[%emt 0:00:00]} e5 {[%emt 0:00:50]} 2. Nc3 {[%emt 0:00:00]} Nf6 {[%emt 0:01:20]} 3. Bc4 {[%emt 0:00:07]} Nxe4 {[%emt 0:02:10]} 4. Qh5 {[%emt 0:01:48]} Nd6 {[%emt 0:00:20]} 5. Bb3 {[%emt 0:02:44]} Nc6 {[%emt 0:01:07] [#]} (5... Be7 $1 $11) 6. Nb5 $1 {[%emt 0:01:24] LiveBook: 37 Games} g6 {[%emt 0:00:55]} 7. Qf3 {[%emt 0:00:36]} f5 {[%emt 0:00:27]} 8. Qd5 {[%emt 0:00:52]} Qe7 {[%emt 0:00:16]} 9. Nxc7+ {[%emt 0:02:37]} Kd8 {[%emt 0:00:06]} 10. Nxa8 {[%emt 0:01:28]} b6 {[%emt 0:05:11]} 11. Qd3 {[%emt 0:29:21] C27: Vienna Game: 2...Nf6 3 Bc4 Nxe4} Bb7 {[%emt 0:07:16]} 12. Nxb6 {[%emt 0:03:26]} Nb4 $146 {[%emt 0:17:15]} ({Predecessor:} 12... axb6 $16 {was worth a try.} 13. Ne2 Nd4 (13... f4 14. O-O h5 15. f3 Nf5 16. Qb5 Qc5+ 17. Qxc5 Bxc5+ 18. Rf2 h4 {½-½ (38) Meissen,F (2555)-Rulfs,E (2384) Remote email 2013})) 13. Qf1 {[%emt 0:05:09]} (13. Qh3 $18 {and White stays clearly on top.} axb6 14. Ne2) 13... axb6 {[%emt 0:08:19]} 14. a3 {[%emt 0:16:34]} Ba6 {[%emt 0:08:49]} (14... Nc6 $16 {is a better defense.}) 15. Ne2 {[%emt 0:05:12]} Nc6 {[%emt 0:02:43]} 16. Qg1 {[%emt 0:06:14]} (16. d3 $18) 16... Nd4 {[%emt 0:05:00] [#]} (16... Bxe2 $1 $14 17. Kxe2 Nd4+ 18. Kf1 Bg7) 17. d3 $1 {[%emt 0:02:43]} Nxe2 {[%emt 0:11:19]} 18. Kxe2 {[%emt 0:00:06]} e4 {[%emt 0:01:12]} 19. Kd1 {[%emt 0:00:10]} (19. Qe1 $18) 19... Bg7 {[%emt 0:04:41]} (19... exd3 $142 20. cxd3 Bxd3) 20. f3 {[%emt 0:02:09]} exd3 $2 {[%emt 0:03:52]} (20... Nc8 21. Qf2 exd3 22. cxd3 Re8) 21. Qxb6+ {[%emt 0:00:22]} Ke8 {[%emt 0:00:52]} 22. Re1 $18 {[%emt 0:00:40]} 1-0

[Event "9. Korbacher Open 2017"]
[Site "Korbach"]
[Date "2017.10.20"]
[Round "3"]
[White "Stahnke, Thorsten"]
[Black "Ohst, Holger"]
[Result "1/2-1/2"]
[ECO "A30"]
[WhiteElo "2026"]
[BlackElo "1986"]
[Annotator "NA RC"]
[PlyCount "163"]
[EventDate "2017.??.??"]
[EventType "swiss"]
[EventCountry "GER"]
[SourceTitle "playchess.com"]
[Source "ChessBase"]
[SourceQuality "1"]
[TimeControl "40/5400+30:1800+30"]

{[%evp 10,157,48,43,49,47,59,47,62,59,49,55,59,57,68,67,63,55,57,32767,32767,32767,38,35,33,36,60,68,61,22,64,29,41,50,41,32,41,0,133,118,177,177,170,168,190,176,181,61,48,45,77,50,90,88,97,32767,108,97,102,32767,145,160,32767,170,32767,162,32767,32767,32767,32767,32767,32767,32767,32767,32767,212,227,225,32767,218,306,368,337,266,719,736,881,892,406,1445,889,1020,1315,5518,1513,1467,1556,5097,1892,2562,1476,1655,1618,2057,29981,29973,29973,29975,29982,29977,32767,29976,29977,32767,32767,29978,32767,32767,32767,32767,32767,29979,29971,32767,29979,29980,29981,1531,992,0,0,32767,0,0,0,0,0,8,0,0,0,0,0,0,0,0,0,0,0,0]} 1. c4 {[%emt 0:00:00]} c5 {[%emt 0:00:31]} 2. Nf3 {[%emt 0:00:00]} g6 {[%emt 0:01:58]} 3. d4 {[%emt 0:00:10]} cxd4 {[%emt 0:01:44]} 4. Nxd4 {[%emt 0:00:09]} Bg7 {[%emt 0:00:13]} 5. e4 {[%emt 0:01:19]} d6 {[%emt 0:08:25]} 6. Be3 {[%emt 0:01:36]} Nf6 {[%emt 0:02:14]} 7. f3 $1 {[%emt 0:00:15]} Bd7 {[%emt 0:06:19]} 8. Nc3 {[%emt 0:02:56]} Nc6 {[%emt 0:06:19]} 9. Qd2 {[%emt 0:02:48] LiveBook: 8 Partien} a6 {[%emt 0:09:16]} 10. Be2 {[%emt 0:02:08]} Rb8 {[%emt 0:06:54]} 11. O-O {[%emt 0:04:25]} O-O {[%emt 0:02:56]} 12. Rfd1 {[%emt 0:00:25]} Nxd4 {[%emt 0:14:15] B38: Sicilian: Maroczy Bind with 5...Bg7 and 7...0-0} 13. Bxd4 {[%emt 0:00:27]} Bc6 {[%emt 0:01:11]} 14. Bf1 $146 {[%emt 0:19:29]} ({Predecessor:} 14. Rac1 Nd7 15. Ba7 Ra8 16. Be3 Rb8 17. b4 b5 18. cxb5 axb5 19. Nd5 Bxd5 20. Qxd5 {1-0 (32) Butnorius,A (2378)-Harestad,T (2206) Porto 2014}) 14... Nd7 {[%emt 0:01:29]} 15. Be3 {[%emt 0:01:16]} b5 {[%emt 0:05:19]} 16. cxb5 {[%emt 0:02:19]} axb5 {[%emt 0:02:36]} 17. Ne2 {[%emt 0:05:47]} Ne5 {[%emt 0:04:09]} 18. Nd4 {[%emt 0:01:06]} Qd7 {[%emt 0:05:06]} 19. Rdc1 {[%emt 0:06:25]} Rfc8 {[%emt 0:03:45]} 20. Rc2 {[%emt 0:04:54]} d5 {[%emt 0:05:04]} 21. Nxc6 {[%emt 0:03:07]} Rxc6 {[%emt 0:00:38]} 22. Rxc6 {[%emt 0:00:46]} Qxc6 {[%emt 0:00:37]} 23. exd5 {[%emt 0:00:22]} Qf6 {[%emt 0:01:11]} (23... Qd7 $11) 24. Rc1 {[%emt 0:03:55]} Nc4 {[%emt 0:02:33]} 25. Bxc4 {[%emt 0:00:17]} bxc4 {[%emt 0:00:01]} 26. Rxc4 {[%emt 0:00:22]} Qxb2 {[%emt 0:01:24]} 27. Qxb2 {[%emt 0:01:51]} Bxb2 {[%emt 0:00:02]} 28. Rc7 {[%emt 0:04:35]} (28. a4 $16) 28... Kf8 {[%emt 0:04:50]} 29. Bc5 {[%emt 0:02:17]} Bf6 {[%emt 0:00:22]} 30. d6 {[%emt 0:02:49]} exd6 {[%emt 0:00:02]} 31. Bxd6+ {[%emt 0:00:10]} Kg8 {[%emt 0:00:15]} 32. Kf2 {[%emt 0:11:35]} Bd4+ {[%emt 0:01:30]} 33. Ke2 {[%emt 0:02:39]} Ra8 {[%emt 0:00:44]} 34. Rc2 {[%emt 0:02:40]} Ra6 {[%emt 0:00:41] [#]} 35. Bb4 $1 {[%emt 0:00:27]} Be5 {[%emt 0:01:59]} 36. g3 {[%emt 0:00:41]} f5 {[%emt 0:00:28]} 37. a3 {[%emt 0:00:48]} Kf7 {[%emt 0:00:39]} 38. f4 {[%emt 0:00:31]} Bd6 {[%emt 0:01:00]} 39. Bxd6 {[%emt 0:03:24]} Rxd6 {[%emt 0:00:01]} 40. a4 {[%emt 0:00:12]} Ra6 {[%emt 0:30:43]} 41. Ra2 {[%emt 0:30:01]} Ke6 {[%emt 0:00:00]} 42. a5 {[%emt 0:00:00]} Kd5 {[%emt 0:00:00] [#]} 43. Kd3 $1 {[%emt 0:00:00]} Kc5 {[%emt 0:00:00]} 44. Kc3 {[%emt 0:00:00]} h5 {[%emt 0:00:00]} 45. h4 {[%emt 0:00:00]} Kb5 {[%emt 0:00:00]} 46. Kd4 {[%emt 0:00:00]} Rd6+ $2 {[%emt 0:00:00]} (46... Kc6 47. Rc2+ Kd7) 47. Ke5 {[%emt 0:00:00]} Ra6 {[%emt 0:00:00]} 48. Kd5 {[%emt 0:00:00]} Kb4 {[%emt 0:00:00]} 49. Ra1 {[%emt 0:00:00]} Kc3 {[%emt 0:00:00]} 50. Kc5 {[%emt 0:00:00]} Kd3 {[%emt 0:00:00]} 51. Kb5 {[%emt 0:00:00]} Ra8 {[%emt 0:00:00]} 52. Ra3+ {[%emt 0:00:00]} Ke2 {[%emt 0:00:00]} 53. a6 {[%emt 0:00:00]} Kf2 {[%emt 0:00:00]} 54. Kb6 {[%emt 0:00:00]} Re8 {[%emt 0:00:00]} 55. a7 {[%emt 0:00:00]} Rf8 {[%emt 0:00:00]} 56. Kc6 {[%emt 0:00:00]} (56. Rc3 $142 Ke2 57. Kb7) 56... Rf6+ {[%emt 0:00:00]} 57. Kd5 {[%emt 0:00:00]} Rf8 {[%emt 0:00:00]} 58. Ke6 {[%emt 0:00:00]} Kg2 {[%emt 0:00:00]} 59. Ke7 {[%emt 0:00:00]} Ra8 {[%emt 0:00:09]} 60. Kf6 {[%emt 0:00:00]} Kh3 {[%emt 0:00:50]} 61. Kxg6 {[%emt 0:00:00]} Kg4 {[%emt 0:00:04]} 62. Kg7 {[%emt 0:03:38]} Kh3 {[%emt 0:00:23]} 63. Kf6 {[%emt 0:01:17]} Kg4 {[%emt 0:00:12]} 64. Kg6 {[%emt 0:00:21]} Rg8+ {[%emt 0:00:08]} 65. Kf7 {[%emt 0:00:40]} Ra8 {[%emt 0:00:03]} 66. Ke6 {[%emt 0:00:16]} Re8+ {[%emt 0:00:26]} 67. Kd6 {[%emt 0:00:29]} Ra8 {[%emt 0:00:16]} 68. Ra5 {[%emt 0:01:28]} (68. Kc6 $142 Rxa7 69. Rxa7 Kxg3 70. Kd6 Kxf4 71. Ra4+ Kf3 72. Ke5 f4 73. Rxf4+ Ke3 74. Rf5) 68... Kxg3 {[%emt 0:00:43]} 69. Rxf5 $2 {[%emt 0:05:41]} (69. Ke5 $18 Kg4 70. Ra6) 69... Rxa7 {[%emt 0:00:13]} 70. Rf8 {[%emt 0:00:16]} Kxh4 {[%emt 0:02:32]} 71. Rg8 {[%emt 0:00:26]} Kh3 {[%emt 0:00:54]} 72. f5 {[%emt 0:04:05]} h4 {[%emt 0:00:09]} 73. f6 {[%emt 0:00:49]} Kh2 {[%emt 0:00:52]} 74. Rg7 {[%emt 0:01:22]} Ra1 {[%emt 0:03:11]} 75. Ke5 {[%emt 0:01:49]} h3 {[%emt 0:03:43]} 76. Rg4 {[%emt 0:01:49]} Ra5+ {[%emt 0:01:12]} 77. Ke6 $11 {[%emt 0:00:54]} Ra6+ {[%emt 0:00:19]} 78. Kf7 {[%emt 0:00:02]} Kh1 {[%emt 0:00:25]} 79. Kg7 {[%emt 0:00:06]} h2 {[%emt 0:00:43]} 80. f7 {[%emt 0:00:20]} Ra7 {[%emt 0:00:08]} 81. Kg8 {[%emt 0:00:02]} Rxf7 {[%emt 0:00:09]} 82. Kxf7 {[%emt 0:00:02]} 1/2-1/2

[Event "9. Korbacher Open 2017"]
[Site "Korbach"]
[Date "2017.10.20"]
[Round "3"]
[White "Lesny, Florian"]
[Black "Aardenburg, Piet"]
[Result "1-0"]
[ECO "C42"]
[WhiteElo "1997"]
[BlackElo "1782"]
[Annotator "NA RC"]
[PlyCount "53"]
[EventDate "2017.??.??"]
[EventType "swiss"]
[EventCountry "GER"]
[SourceTitle "playchess.com"]
[Source "ChessBase"]
[SourceQuality "1"]
[TimeControl "40/5400+30:1800+30"]

{[%evp 8,53,45,47,39,25,45,30,32767,32767,58,60,64,66,51,54,99,70,158,146,145,140,210,200,211,199,197,161,197,202,209,208,252,212,209,216,293,304,303,321,327,342,356,411,395,435,435,435]} 1. e4 {[%emt 0:00:00]} e5 {[%emt 0:00:09]} 2. Nf3 {[%emt 0:00:00]} Nf6 {[%emt 0:00:07]} 3. Nxe5 {[%emt 0:00:00]} d6 {[%emt 0:00:09]} 4. Nf3 {[%emt 0:00:00]} Nxe4 {[%emt 0:00:07]} 5. d4 {[%emt 0:00:04]} d5 {[%emt 0:00:55]} 6. Bd3 {[%emt 0:00:07]} Nc6 {[%emt 0:00:21]} 7. O-O {[%emt 0:01:03]} Be7 {[%emt 0:03:20]} 8. Re1 {[%emt 0:00:51]} Nf6 {[%emt 0:09:21]} 9. c3 {[%emt 0:02:47] C42: Petroff Defence: 3 Nxe5 and unusual White 3rd moves} O-O {[%emt 0:01:39]} (9... Bg4 10. Qb3 Rb8 11. Ne5 O-O 12. Bg5 Bh5 13. Nxc6 bxc6 14. Qc2 Bg6 15. Bxg6 hxg6 16. Nd2 Re8 17. b4 Bd6 {½-½ (53) Sulskis,S (2564)-Zaitsev,M (2515) Germany 2013}) 10. Nbd2 {[%emt 0:01:49] LiveBook: 3 Games} Bg4 {[%emt 0:02:19]} 11. Nf1 {[%emt 0:01:30]} h6 {[%emt 0:03:13]} 12. h3 {[%emt 0:02:49]} Bxf3 {[%emt 0:03:19]} (12... Be6 $142) 13. Qxf3 {[%emt 0:00:12]} Bd6 {[%emt 0:01:54]} 14. Ng3 $146 {[%emt 0:05:23]} ({Predecessor:} 14. Bd2 Nh7 15. Re2 Ne7 16. Rae1 c6 17. Ng3 Ng6 {1-0 (35) Casser,A (1428)-Salazar Moran,A (1500) LSS email 2010}) 14... Ne7 {[%emt 0:01:32] [#]} (14... Bxg3 $16 {was worth a try.} 15. Qxg3 Kh8) 15. Bxh6 $1 {[%emt 0:03:45]} gxh6 {[%emt 0:00:30]} 16. Qxf6 {[%emt 0:00:28]} Ng6 {[%emt 0:01:35]} 17. Qxd8 {[%emt 0:01:13]} Raxd8 {[%emt 0:00:23]} 18. Nf5 {[%emt 0:00:46]} h5 {[%emt 0:02:19]} 19. g3 {[%emt 0:04:10]} c6 {[%emt 0:02:50]} 20. Nxd6 {[%emt 0:00:41]} Rxd6 {[%emt 0:00:02]} 21. h4 {[%emt 0:00:50]} f5 {[%emt 0:00:58]} 22. Be2 {[%emt 0:01:48]} f4 {[%emt 0:01:44]} 23. Bxh5 {[%emt 0:01:53]} fxg3 {[%emt 0:00:06]} 24. fxg3 {[%emt 0:00:22]} Rf7 {[%emt 0:04:11]} 25. Re8+ {[%emt 0:01:09]} Kh7 {[%emt 0:00:34]} 26. Rae1 {[%emt 0:01:28]} Rdf6 {[%emt 0:02:29]} 27. R8e6 $18 {[%emt 0:02:42]} 1-0

[Event "9. Korbacher Open 2017"]
[Site "Korbach"]
[Date "2017.10.20"]
[Round "3"]
[White "Dudink, Bas"]
[Black "Heinemann, Ernst"]
[Result "0-1"]
[ECO "A58"]
[WhiteElo "1951"]
[BlackElo "2099"]
[Annotator "NA RC"]
[PlyCount "142"]
[EventDate "2017.??.??"]
[EventType "swiss"]
[EventCountry "GER"]
[SourceTitle "playchess.com"]
[Source "ChessBase"]
[SourceQuality "1"]
[TimeControl "40/5400+30:1800+30"]

{[%evp 8,141,20,32767,32767,32767,32767,32767,32767,32767,32767,32767,32767,32767,32767,30,56,17,52,-70,-92,-87,-89,-99,-42,-43,-23,-29,-25,-17,-24,-31,-8,-16,-13,-21,-6,-13,-16,-20,-21,-13,-14,-42,-6,-16,-4,-15,0,0,0,0,0,0,0,-11,0,0,0,0,0,0,0,0,8,0,0,32767,32767,32767,32767,32767,0,0,32767,0,0,32767,32767,32767,32767,-71,-71,-140,-96,-249,-129,-189,-143,-174,-26,-73,-75,-79,-35,-81,-115,-137,32767,32767,0,32767,32767,32767,32767,-181,32767,32767,32767,32767,32767,32767,32767,32767,-184,32767,-139,-138,-87,-95,-89,-248,-337,-265,32767,32767,32767,-764,-2832,-12841,-6881,-4133,-4133,-4133,-2850,-29978]} 1. d4 {[%emt 0:00:00]} Nf6 {[%emt 0:00:06]} 2. c4 {[%emt 0:00:00]} c5 {[%emt 0:00:05]} 3. d5 {[%emt 0:00:00]} b5 {[%emt 0:00:06]} 4. cxb5 {[%emt 0:00:00]} a6 {[%emt 0:00:04]} 5. bxa6 {[%emt 0:00:00]} e6 {[%emt 0:00:06]} 6. Nc3 {[%emt 0:00:08]} Nxd5 {[%emt 0:00:15]} 7. Nxd5 {[%emt 0:01:02]} exd5 {[%emt 0:00:06]} 8. Qxd5 {[%emt 0:01:09]} Nc6 {[%emt 0:00:06]} 9. e4 {[%emt 0:02:15]} Be7 {[%emt 0:00:07] A58: Benko/Volga Gambit: Lines with 5 bxa6} 10. Nf3 {[%emt 0:01:29]} Bxa6 {[%emt 0:01:47]} 11. Bd2 {[%emt 0:08:12]} Qb6 {[%emt 0:05:23]} 12. Bc3 {[%emt 0:02:49]} O-O {[%emt 0:00:48]} 13. Bc4 $146 {[%emt 0:00:48] [#]} ({Don't play} 13. Qxd7 Rfd8 $15) (13. a3 $14) ({Predecessor:} 13. Bxa6 Qxa6 14. Ne5 Nd4 15. Bxd4 cxd4 16. f4 Rac8 17. Qb3 {½-½ (28) Nikitin,A (2452)-Annageldyev,O (2458) Alushta 2004}) 13... Nb4 $1 {[%emt 0:03:31]} 14. Bxb4 {[%emt 0:01:58]} ({But not} 14. Qe5 $2 Bf6 $19) 14... Qxb4+ {[%emt 0:01:08]} 15. Nd2 {[%emt 0:00:06]} Bb7 {[%emt 0:12:57]} ({Of course not} 15... Qxb2 $6 16. O-O $11) 16. Qd3 {[%emt 0:07:29]} Bg5 {[%emt 0:14:15]} (16... d5 $5 17. exd5 Bg5 $11) 17. Qc3 {[%emt 0:02:49]} Qxc3 {[%emt 0:03:39]} 18. bxc3 {[%emt 0:00:10]} Bxd2+ {[%emt 0:00:16]} 19. Kxd2 {[%emt 0:00:11]} Bxe4 {[%emt 0:00:06]} 20. f3 {[%emt 0:00:34]} Bc6 {[%emt 0:00:11]} 21. Rhb1 {[%emt 0:03:06]} g6 {[%emt 0:14:28]} 22. Rb6 {[%emt 0:02:36]} Ra5 {[%emt 0:02:32]} 23. Ra6 {[%emt 0:20:55]} Rxa6 {[%emt 0:05:48]} 24. Bxa6 {[%emt 0:00:03]} Ra8 {[%emt 0:00:58]} 25. Bc4 {[%emt 0:04:22]} Kf8 {[%emt 0:02:37]} 26. Bb3 {[%emt 0:00:26]} d5 {[%emt 0:04:56]} 27. a4 {[%emt 0:01:51]} Rb8 {[%emt 0:01:17]} 28. Bc2 {[%emt 0:00:34]} Ra8 {[%emt 0:01:47]} 29. a5 {[%emt 0:10:46]} Bb5 {[%emt 0:01:19]} 30. h4 {[%emt 0:02:12]} Ke7 {[%emt 0:00:42]} 31. g4 {[%emt 0:02:32]} Kd6 {[%emt 0:00:15]} 32. f4 {[%emt 0:01:17]} h6 {[%emt 0:06:02]} 33. Bd1 {[%emt 0:06:05]} Ra7 {[%emt 0:00:46]} 34. Bf3 {[%emt 0:00:19]} c4 {[%emt 0:02:43]} 35. Ke3 {[%emt 0:03:46]} Kc5 {[%emt 0:00:45]} 36. Rd1 {[%emt 0:01:33]} Bc6 {[%emt 0:03:10]} 37. Ra1 {[%emt 0:00:22]} f6 {[%emt 0:03:18]} 38. Ra2 {[%emt 0:00:46]} Ra6 {[%emt 0:01:58]} 39. Ra1 {[%emt 0:00:13]} Be8 {[%emt 0:01:12]} 40. Ra2 {[%emt 0:00:39]} Bb5 {[%emt 0:36:03]} 41. Ra1 {[%emt 0:31:02]} Re6+ {[%emt 0:01:00]} 42. Kd2 {[%emt 0:00:20]} d4 {[%emt 0:01:05]} 43. cxd4+ {[%emt 0:06:32]} Kxd4 {[%emt 0:00:16]} 44. Ra3 {[%emt 0:00:00]} Ba6 {[%emt 0:00:00]} 45. Rc3 {[%emt 0:00:00]} (45. Bd1 $142) 45... Re7 {[%emt 0:00:00]} 46. Bg2 {[%emt 0:00:00] [#]} (46. Bd1 $17) 46... Rc7 {[%emt 0:00:00]} (46... g5 $1 $19 {and Black stays clearly on top.} 47. hxg5 hxg5) 47. Kc2 {[%emt 0:00:00]} Rc5 {[%emt 0:00:00]} 48. Ra3 {[%emt 0:00:00] [#]} g5 $2 {[%emt 0:00:00]} (48... c3 $1 $19 49. Ra4+ Ke3 50. Re4+ Kf2) 49. fxg5 {[%emt 0:00:00]} fxg5 {[%emt 0:00:00]} 50. hxg5 {[%emt 0:00:15]} hxg5 {[%emt 0:00:00]} 51. Bf1 {[%emt 0:01:06]} Re5 {[%emt 0:00:00]} 52. Kd1 {[%emt 0:03:38]} Re4 {[%emt 0:00:00]} 53. Be2 {[%emt 0:00:18]} Re5 {[%emt 0:00:00]} (53... Re6 $17 54. Ra2 Kc3) 54. Bf1 {[%emt 0:01:02]} Re6 {[%emt 0:00:00]} 55. Rf3 {[%emt 0:01:28]} Bb5 {[%emt 0:00:00]} 56. Ra3 {[%emt 0:01:14]} Rf6 {[%emt 0:00:00]} 57. Be2 {[%emt 0:00:14]} Re6 {[%emt 0:00:00]} 58. Bf1 {[%emt 0:00:09]} Kc5 {[%emt 0:00:00]} 59. Ra1 {[%emt 0:01:14]} Rf6 {[%emt 0:00:00]} 60. Be2 {[%emt 0:00:14]} Kb4 {[%emt 0:00:00]} 61. Kc2 {[%emt 0:01:37]} Rf2 {[%emt 0:00:00]} (61... Ba4+ $19 62. Kd2 c3+ 63. Ke1 Rd6) 62. Kd1 {[%emt 0:00:11]} Rg2 {[%emt 0:00:00]} ({Better is} 62... Rf7 $19 63. Ke1 Re7) 63. Bf1 {[%emt 0:01:45] [#]} Rg1 $1 {[%emt 0:00:00]} 64. Kc2 $2 {[%emt 0:01:00]} (64. Ke1 $17 {war die einzige Chance.}) 64... Ba4+ {[%emt 0:00:00]} 65. Kd2 {[%emt 0:00:06]} c3+ {[%emt 0:00:00]} 66. Ke3 {[%emt 0:00:29]} Kxa5 {[%emt 0:00:24]} 67. Kd3 $2 {[%emt 0:01:19]} (67. Kf2 Rh1 68. Kg2) 67... Kb4 {[%emt 0:01:55]} ({Inferior is} 67... Rxf1 68. Rxf1 Bb5+ 69. Kxc3 $11) 68. Rb1+ {[%emt 0:00:28]} Bb3 {[%emt 0:00:14]} 69. Ke2 {[%emt 0:01:24]} Rxg4 {[%emt 0:01:18]} 70. Bh3 {[%emt 0:00:33]} Rd4 {[%emt 0:00:51]} 71. Ke3 {[%emt 0:00:27]} c2 {[%emt 0:01:13]} 0-1